Cogmind - Beta 13 @@@ ROGUE MODE // 2024.04.13 @ 18:10:45 Player: Dosh Result: Self-destructed Performance ------------- Evolutions (1) 500 Regions Visited (3) 600 Robots Destroyed (25) 125 Value Destroyed (505) 505 Prototype IDs (6) 120 Alien Tech Used (0) 0 Bonus (0) 0 TOTAL SCORE: 1850 Bonus ------- None Cogmind --------- Core Integrity 347/400 Matter 300/300 Energy 97/100 System Corruption 0% Temperature Cool (0) Movement Core (400) Ox7 Location -9/Materials Parts ------- > --- POWER (1) -------- (None) > --- PROPULSION (3) --- (None) > --- UTILITY (3) ------ Large Storage Unit Trap Extractor (4/4 Shock) > --- WEAPON (2) ------- Mining Claw > --- INVENTORY (15) --- Ion Engine Ion Engine Light Treads Aluminum Leg Cooling System High-capacity Storage Unit Structural Scanner Datajack Peak State ------------ > --- POWER ------------ Ion Engine > --- PROPULSION ------- Light Treads Light Treads > --- UTILITY ---------- Large Storage Unit Trap Extractor > --- WEAPON ----------- Light Assault Rifle Datajack > --- INVENTORY -------- Ion Engine Ion Engine Light Treads Aluminum Leg Cooling System High-capacity Storage Unit Structural Scanner Mining Claw [Rating: 8] Favorites ----------- Power Ion Engine Engine Ion Engine Propulsion Light Treads Treads Light Treads Leg Aluminum Leg Utility Large Storage Unit Device Trap Extractor Storage Large Storage Unit Weapon Light Assault Rifle Ballistic Gun Light Assault Rifle Slashing Weapon Mining Claw Special Melee Weapon Datajack Build | -11 -10 -10 -9 ------- Run | Yrd Mat Min Mat Slots Evolved 2 | . . . 2 Power . | . . . . Propulsion 1 | . . . 1 Utility 1 | . . . 1 Weapon . | . . . . Parts Attached 20 | 5 15 . . Power 3 | 1 2 . . Engine 3 | 1 2 . . Core . | . . . . Reactor . | . . . . Propulsion 7 | 2 5 . . Treads 4 | . 4 . . Leg 3 | 2 1 . . Wheel . | . . . . Hover . | . . . . Flight . | . . . . Utility 4 | 1 3 . . Device 2 | . 2 . . Storage 2 | 1 1 . . Processor . | . . . . Hackware . | . . . . Protection . | . . . . Artifact . | . . . . Weapon 6 | 1 5 . . Energy Gun . | . . . . Energy Cannon . | . . . . Ballistic Gun 3 | 1 2 . . Ballistic Cannon . | . . . . Launcher . | . . . . Special Weapon . | . . . . Impact Weapon . | . . . . Slashing Weapon 2 | . 2 . . Piercing Weapon . | . . . . Special Melee Weapon 1 | . 1 . . Unidentified Prototypes . | . . . . Parts Lost 8 | . 4 2 2 Power 2 | . 1 1 . Propulsion 4 | . 2 1 1 Utility . | . . . . Weapon 2 | . 1 . 1 Highest Loss Streak 2 | . 2 2 2 To Critical Strikes . | . . . . Average Slot Usage (%) 78 | . 78 81 55 Engine 12 | . 13 5 . Treads 13 | . 12 18 11 Leg 11 | . 13 . . Device 5 | . 3 14 11 Storage 13 | . 14 14 11 Ballistic Gun 14 | . 15 14 11 Slashing Weapon 5 | . 4 14 11 Naked Turns . | . . . . Heaviest Build 30 | 11 30 30 25 Greatest Support 40 | 20 40 40 20 Greatest Overweight (x) 2 | . 2 1 1 Average Overweight (x) . | . . . 1 Largest Inventory Capacity 15 | 8 15 15 15 Average Capacity 14 | 6 14 15 15 Most Carried 9 | . 9 8 8 Average Carried 5 | . 4 8 8 Final Capacity 15 | 8 15 15 15 Final Carried 8 | . 8 8 8 Class Distribution -------------------- 57% | Scavenger-Mutant 42% | Mutant Dominant Class ---------------- Scavenger-Mutant | -10/Materials Mutant | -10/Mines Mutant | -9/Materials Resources | -11 -10 -10 -9 ----------- Run | Yrd Mat Min Mat Matter Collected 532 | 250 270 12 . Remotely . | . . . . Salvage Created 749 | . 666 83 . Parts 57 | . 43 14 . Haulers Intercepted 2 | . 2 . . Recyclers Shooed 3 | . 3 . . Parts Field Recycled . | . . . . Retrieved Matter . | . . . . Parts Self-Destructed . | . . . . Prevented . | . . . . Kills | -11 -10 -10 -9 ------- Run | Yrd Mat Min Mat Combat Hostiles Destroyed 18 | . 12 6 . Melee 6 | . . 6 . Guns 12 | . 12 . . Classes Destroyed 7 | . 7 . . Worker 1 | . 1 . . Hauler 2 | . 2 . . Recycler 1 | . 1 . . Operator 2 | . 2 . . Watcher 1 | . 1 . . Swarmer 8 | . 2 6 . Grunt 10 | . 10 . . Best Kill Streak 3 | . 2 3 . Combat Bots Only 3 | . 2 3 . Max Kills in Single Turn 1 | . 1 1 . Gunslinging . | . . . . Exploded . | . . . . Melee 1 | . . 1 . Uniques/NPCs Destroyed . | . . . . Combat | -11 -10 -10 -9 -------- Run | Yrd Mat Min Mat Hostile Shots Fired 171 | . 93 54 24 Missed 36 | . 22 8 6 Damage Taken 1314 | . 795 364 155 Core 293 | . 159 81 53 Absorbed by Shields . | . . . . Regen/Repaired (Parts) 86 | . 86 . . Core Remaining (%) 52 | 100 . 4 . Volleys Fired 109 | . 109 . . Largest 2 | . 2 . . Hottest 40 | . 40 . . Shots Fired 123 | . 123 . . Gun 123 | . 123 . . Cannon . | . . . . Launcher . | . . . . Special . | . . . . Kinetic 123 | . 123 . . Thermal . | . . . . Explosive . | . . . . Electromagnetic . | . . . . Robot Hit Streak 20 | . 20 . . Robot Miss Streak 3 | . 3 . . Penetration Max . | . . . . Secondary Targets . | . . . . Shots Hit Robots 105 | . 94 11 . Core Hits 49 | . 44 5 . Critical Kills . | . . . . Critical Parts Destroyed . | . . . . Critical Strikes . | . . . . Melee Attacks 31 | . 7 21 3 Impact . | . . . . Slashing 31 | . 7 21 3 Piercing . | . . . . Sneak Attacks 7 | . 6 1 . Combat Hostiles . | . . . . Follow-up Attacks . | . . . . Damage Inflicted 1333 | . 1036 297 . Guns 690 | . 690 . . Cannons . | . . . . Explosions . | . . . . Melee 642 | . 345 297 . Ramming 1 | . 1 . . Kinetic 690 | . 690 . . Thermal . | . . . . Explosive . | . . . . Electromagnetic . | . . . . Impact . | . . . . Slashing 642 | . 345 297 . Piercing . | . . . . Highest Corruption 1 | . 1 1 . Average Corruption 1 | . 1 1 . Corruption Purged . | . . . . Corruption Blocked . | . . . . Effects 7 | . 5 2 . Message Errors 2 | . 2 . . Matter Fused 2 | . 1 1 . Energy Discharges 1 | . 1 . . Data Loss (minor) 1 | . 1 . . Alerts 1 | . . 1 . Overload Shots . | . . . . Overflow Damage 66 | . 37 29 . Projectiles . | . . . . Explosions . | . . . . Melee 66 | . 37 29 . Knockbacks . | . . . . Impact . | . . . . Kinetic . | . . . . Secondary . | . . . . Self-Inflicted Damage . | . . . . Shots . | . . . . Rammed 1 | . 1 . . Targets Rammed 1 | . 1 . . Kicked . | . . . . Crushed . | . . . . Highest Temperature 18 | . 18 . . Average Temperature 7 | . 7 . . Received Heat Transfer 411 | . 387 . 24 Siege Activations . | . . . . Robots Corrupted . | . . . . Combat Hostiles . | . . . . Parts Fried . | . . . . Impact Corruptions . | . . . . Robots Melted . | . . . . Combat Hostiles . | . . . . Parts Melted . | . . . . Heat Transferred . | . . . . Parts Sabotaged . | . . . . Parts Stolen . | . . . . Parts Stripped . | . . . . Power Chain Reactions . | . . . . Alert | -11 -10 -10 -9 ------- Run | Yrd Mat Min Mat Peak Influence 175 | . 151 175 68 Initial 68 | . . 40 68 Average 74 | . 68 139 67 Maximum Alert Level . | . . . . Low Security (%) 100 | 100 100 100 100 Level 1 . | . . . . Level 2 . | . . . . Level 3 . | . . . . Level 4 . | . . . . Level 5 . | . . . . High Security . | . . . . Max Security . | . . . . Squads Dispatched 6 | . 6 . . Investigation 4 | . 4 . . Extermination . | . . . . Reinforcement 2 | . 2 . . Assault . | . . . . Garrison . | . . . . Intercept . | . . . . Searches Triggered . | . . . . Construction Impeded . | . . . . Haulers Reinforced . | . . . . Active Scanning Responses . | . . . . Cargo Convoy Interrupts . | . . . . Stealth | -11 -10 -10 -9 --------- Run | Yrd Mat Min Mat Distress Signals 1 | . 1 . . Communications Jammed . | . . . . Distress Signals . | . . . . Times Spotted 49 | . 33 10 6 Peak Tracking Total 7 | . 5 3 7 Tactical Retreats 2 | . 1 1 . Traps | -11 -10 -10 -9 ------- Run | Yrd Mat Min Mat Traps Triggered 2 | . 2 . . Indirectly . | . . . . Trap Hack Attempts 43 | . 43 . . Triggered . | . . . . Disarmed . | . . . . Reprogrammed 6 | . 6 . . Reused . | . . . . Traps Extracted 4 | . 4 . . Installed . | . . . . Triggered . | . . . . Most Traps Carried 4 | . 4 4 4 Machines | -11 -10 -10 -9 ---------- Run | Yrd Mat Min Mat Machines Disabled . | . . . . Max in Single Turn . | . . . . Machines Repaired . | . . . . Machines Dismantled . | . . . . Machines Sabotaged . | . . . . Overloaded Fab Kills . | . . . . Hacking | -11 -10 -10 -9 --------- Run | Yrd Mat Min Mat Machines Accessed 8 | . 8 . . Terminals 5 | . 5 . . Fabricators . | . . . . Repair Stations 1 | . 1 . . Recycling Units 2 | . 2 . . Scanalyzers . | . . . . Garrison Access . | . . . . Total Hacks 32 | . 32 . . Successful 21 | . 21 . . Failed 11 | . 11 . . Catastrophic . | . . . . Database Lockouts . | . . . . Manual 19 | . 19 . . Terminals 23 | . 23 . . Fabricators . | . . . . Repair Stations 7 | . 7 . . Recycling Units 2 | . 2 . . Scanalyzers . | . . . . Garrison Access . | . . . . Terminal Hacks 13 | . 13 . . Robot Analysis 2 | . 2 . . Prototype ID Bank 7 | . 7 . . Alert Level 1 | . 1 . . Locate Traps 1 | . 1 . . Recall Investigation 1 | . 1 . . Zone Layout 1 | . 1 . . Fabricator Hacks . | . . . . Repair Station Hacks 5 | . 5 . . Scan Component 3 | . 3 . . Repair 2 | . 2 . . Recycling Unit Hacks . | . . . . Scanalyzer . | . . . . Garrison Access Hacks . | . . . . Unauthorized Hacks 3 | . 3 . . Terminals 1 | . 1 . . Botnet 1 | . 1 . . Fabricators . | . . . . Repair Stations . | . . . . Recycling Units 2 | . 2 . . Tunnel 2 | . 2 . . Scanalyzers . | . . . . Garrison Access . | . . . . Data Cores Recovered . | . . . . Used . | . . . . Hacking Detections 6 | . 6 . . Full Trace Events 2 | . 2 . . Feedback Events . | . . . . Feedback Blocked . | . . . . Robot Schematics Acquired . | . . . . Robots Built . | . . . . Authchips . | . . . . Time . | . . . . Total Robot Build Rating . | . . . . Part Schematics Acquired . | . . . . Parts Built . | . . . . Authchips . | . . . . Time . | . . . . Total Part Build Rating . | . . . . Parts Repaired 2 | . 2 . . Time 52 | . 52 . . Parts Recycled . | . . . . Recycled Matter . | . . . . Retrieved Matter . | . . . . Retrieved Components . | . . . . Parts Scanalyzed . | . . . . Part Schematics Acquired . | . . . . Parts Damaged . | . . . . Bothacking | -11 -10 -10 -9 ------------ Run | Yrd Mat Min Mat Used RIF Installer . | . . . . Robots Hacked . | . . . . Non-combat . | . . . . Combat . | . . . . Robot Hacks Applied . | . . . . Relay Couplers Released . | . . . . Fabnet Peak Effective % . | . . . . Robots Rewired . | . . . . Allies Hacked . | . . . . Hacks Repelled . | . . . . Allies | -11 -10 -10 -9 -------- Run | Yrd Mat Min Mat Total Allies . | . . . . Largest Group . | . . . . Highest-Rated Group . | . . . . Highest-Rated Ally . | . . . . Total Orders . | . . . . Ally Attacks . | . . . . Total Damage . | . . . . Kills . | . . . . Allies Corrupted . | . . . . Allies Melted . | . . . . Intel | -11 -10 -10 -9 ------- Run | Yrd Mat Min Mat Robot Analysis Total 2 | . 2 . . Derelict Logs Recovered 1 | . . 1 . Drone Launches . | . . . . Drone Recoveries . | . . . . Exploration | -11 -10 -10 -9 ------------- Run | Yrd Mat Min Mat Turns Passed 2595 | 56 2179 300 60 Spaces Moved 1054 | 44 898 91 21 Core 5 | 5 . . . Treads 696 | . 584 91 21 Legs 353 | 39 314 . . Wheels . | . . . . Hover . | . . . . Flight . | . . . . Fastest Speed 50 | 50 120 160 240 Average Speed 196 | 112 199 201 240 Slowest Speed 260 | 120 260 240 240 Overloaded Moves . | . . . . Propulsion Burnouts . | . . . . Robots Hopped . | . . . . Cave-ins Triggered . | . . . . Exploration Rate (%) 30 | 4 98 17 4 Regions Visited 3 Branch Regions 1 Pre-discovered Areas 2 | . 2 . . Known Exits Taken 1 | . . 1 . Unknown Exits Taken 2 | 1 1 . . Scrap Searched 1 | . . 1 . Spaces Dug . | . . . . Terrain Destroyed . | . . . . Melee . | . . . . Projectile . | . . . . AOE . | . . . . Terrain Rammed . | . . . . Walls Destroyed . | . . . . Machines Disabled . | . . . . Actions | -11 -10 -10 -9 --------- Run | Yrd Mat Min Mat Total 1410 | 48 1171 167 24 Wait 143 | . 87 56 . Move 1051 | 43 897 90 21 Hop . | . . . . Pick Up 8 | . 8 . . Fast Attach 12 | 5 7 . . Attach 3 | . 3 . . Detach 2 | . 2 . . Swap 5 | . 5 . . Drop 2 | . 2 . . Fire 109 | . 109 . . Melee 31 | . 7 21 3 Ram . | . . . . Kick . | . . . . Crush 1 | . 1 . . Escape Stasis . | . . . . Rewire . | . . . . Trap 43 | . 43 . . Miscellaneous . | . . . . Route ------- -11/Scrapyard -10/Materials (discovered 5 exits: *Mat x3 / [*Min] / [*Sub]) -10/Mines -9/Materials History --------- Turn | Location | Event 7 | -11/Scrapyard | Discovered new exit (range 15) 57 | -11/Scrapyard | Entered Materials 189 | -10/Materials | Discovered new exit (range 16) 315 | -10/Materials | Build established: Mutant 430 | -10/Materials | Discovered new exit (range 13) 990 | -10/Materials | Discovered new exit (range 15) 1136 | -10/Materials | Repaired Lgt. Assault Rifle 1164 | -10/Materials | Repaired Structural Scanner 1198 | -10/Materials | Core integrity fell below 50% 1359 | -10/Materials | Discovered new exit (range 3) 1442 | -10/Materials | Build established: Scavenger-Mutant 1891 | -10/Materials | Discovered new exit (range 7) 2236 | -10/Materials | Entered Mines 2297 | -10/Mines | Identified exit to Materials 2344 | -10/Mines | Core integrity fell below 20% 2463 | -10/Mines | Assembled infested the area 2468 | -10/Mines | Assisted by a Guerilla fighting off Assembled 2536 | -10/Mines | Entered Materials 2536 | -9/Materials | Evolved 2 slots: Propulsion x1, Utility x1 2596 | -9/Materials | Self-destructed Last Messages --------------- 02387_ Searching scrap... 02387_ Found ECM Suite. 02387_ Found 36 Matter. 02406_ System corrupted: IFF burst signal emitted. 02424_ R-06 Scavenger collects Lgt. Assault Rifle. 02428_ T-07 Excavator is excavating. 02442_ Sneak attack on R-06 Scavenger. 02442_ Destroyed Com. Wheel. 02463_ ALERT: Infestation in the mines, dispatching Demolisher response squad. 02468_ A derelict emerges from the shadows: "You need to get out of here! I've been tracking a group of Assembled to figure out where they're coming from, and they're closing on this area, come on!" 02468_ I6-BP6(h) exits level. PARAMETERS=PROPULSION+1,UTILITY+1 LOCATION=MATERIALS GOAL=ESCAPE 02537_ T-07 Excavator is excavating. 02593_ Lgt. Treads destroyed. 02595_ Lgt. Assault Rifle destroyed. Map ----- +----------------------------------------------------+ | ?????????????????????????????????????????????????? | | ?????????????????????????????????????????????????? | | ?????????????????????????????????????????????????? | | ?????????????????????????????????????????????????? | | ?????????????????????????????????????????????????? | | ?????????????????????????????????????????????????? | | ?????????????????????????????????????????????????? | | ?????????????????????????????????????????????????? | | ?????????????????????????????????????????????????? | | ?????????????????????????????????????????????????? | | ?????????????????????????????????????????????????? | | ?????????????????????????????????????????????????? | | ?????????????????????????????????????????????????? | | ?????????????????????????????????????????????????? | | ?????????????????????????????????????????????????? | | ?????????????????????????????????????????????????? | | ?????????????????????????????????????????????????? | | ?????????????????????????????????????????????????? | | ???????????????# ????????????????????????????????? | | ???????????????# ???????????????????????????????? | | ???????????????# ??????????????????????????????? | | ????????????????? ]]??????????#######???????????? | | ??????????????????? ??######## #???????????? | | ?????????????????????s ## #???????????? | | ???????????????????????/s #########???? | | ???????????????????????##@ ?? | | ????????????????????????# #### #######?????? | | ????????????????????????# #??## ##???????????? | | ????????????????????????# #???# #?#??????????? | | ?????????????????##+#####gs #???# # #??????????? | | ?????????????????# sg#???# #??????????? | | ?????????? #???# # #??????????? | | ?????????????##### #???# ###??????????? | | ?????????????????##+#########???# #????????????? | | ????????????????????????????????#####????????????? | | ?????????????????????????????????????????????????? | | ?????????????????????????????????????????????????? | | ?????????????????????????????????????????????????? | | ?????????????????????????????????????????????????? | | ?????????????????????????????????????????????????? | | ?????????????????????????????????????????????????? | | ?????????????????????????????????????????????????? | | ?????????????????????????????????????????????????? | | ?????????????????????????????????????????????????? | | ?????????????????????????????????????????????????? | | ?????????????????????????????????????????????????? | | ?????????????????????????????????????????????????? | | | | | | | +----------------------------------------------------+ Best States ------------- Heat Dissipation 28 Energy Generation 10 Energy Capacity 250 Matter Stores 300 Matter Capacity 300 Sight Range 16 Terrain Scan Density 10 Evasion (%) 55 Recoil Reduction 2 Trap Extractor Capacity 4 Item Schematics ----------------- None Robot Schematics ------------------ None Fabricated ------------ Nothing Alien Tech Used ----------------- None Achievements -------------- None Challenges ------------ None Game ------ Seed TiamatDefenseLance Manual? 0 Play Time 00:09:22 Cumulative 331.7 hours Start 2024.04.12 @ 17:53:46 End 2024.04.13 @ 18:10:45 Sessions 2 Manual Loads 0 Difficulty Rogue Special Mode None Game No. 219 Rogue 219 Adventurer 0 Explorer 0 Win Type - Total 19 Types 12/2/2/1/1/0/0/1/0 Lore% 79 Gallery% 84 Achievement% 74 Wizard Run 0 Options --------- Layout 0 ASCII 0 Keyboard 1 Movement Numpad Keybinds 0 Fullscreen 2 Font 18/SmallcapsGlow Map View 76x50 Zoom Use 0% Tactical HUD 1 Map Filters NONE Filters NONE Steam 1 RUN: fdf00bdd-0d26-4c6b-a44f-788f222bbdee